Workbook

Sheet Лист1
A1: сведения для расчетов за 2017 год
B2: Затраты | C2: Кот.№19 | D2: Кот.№21 | E2: Кот.№ 7 | F2: ИТОГО
A3: 1 | B3: затраты за 2017 год без учета содержания объектов
A4: 1.1 | B4: ФОТ | C4: 11 | D4: 17 | E4: 22 | F4: =C4+D4+E4 -> 50
C5: 2494136.2 | D5: 4665493.5 | E5: 6180505.46 | F5: =C5+D5+E5 -> 13340135.16
A6: 1.1.1 | B6: Оплата труда | C6: 1910077.04 | D6: 3584961.84 | E6: 4739739.97 | F6: =C6+D6+E6 -> 10234778.85
A7: 1.1.2 | B7: Страховые взносы | C7: 584059.16 | D7: 1080531.66 | E7: 1440765.49 | F7: 3105356.31
A8: 1.2 | B8: охрана труда | C8: 9972.02 | D8: 24327.77 | E8: 34410.5 | F8: 68710.29
A9: 1.3 | B9: больн. за счет пред-я | C9: =7663.02 -> 7663.02 | D9: =19212.87 -> 19212.87 | E9: =27959.34 -> 27959.34 | F9: 54835.23
A10: 1.4 | B10: подготовка кадров | D10: 3900 | E10: 3900 | F10: 7800
A11: 1.5 | B11: топливо | C11: 4252485.97 | D11: 11531827.05 | E11: 28769795.97 | F11: 44554108.99
A12: 1.6 | B12: эл.энергия | C12: 965376.42 | D12: 3893620.73 | E12: 12485334.28 | F12: 17344331.43
A13: 1.7 | B13: - водоснабжение | C13: 57685.38 | D13: 989005.34 | E13: 572134.18 | F13: 1618824.9
B14: итого | C14: =C5+C8+C9+C10+C11+C12+C13 -> 7787319.01 | D14: =D5+D8+D9+D10+D11+D12+D13 -> 21127387.26 | E14: 48074039.73 | F14: 76988746
A15: 2 | B15: энергоресурсы
A16: 2.1 | B16: газ, тыс.куб.м | C16: 833.282 | D16: 2277.34 | E16: 5685.086 | F16: 8795.708
A17: 2.2 | B17: уголь,тн | C17: 0 | D17: 0 | E17: 0 | F17: 0
A18: 2.3 | B18: эл.энергия.квт/час | C18: 163823 | D18: 651391 | E18: 2098395 | F18: 2913609
B19: вода | C19: 2190 | D19: 37082 | E19: 21547 | F19: 60819
A20: 3 | B20: стоимость ресурсов за ед. в руб.
A21: 3.1 | B21: газ (руб. за тыс. м. куб.) | C21: =C11/C16 -> 5103.297527 | D21: =D11/D16 -> 5063.726563 | E21: =E11/E16 -> 5060.573573 | F21: =(C21+D21+E21)/3 -> 5075.865887
A22: 3.2 | B22: Электроэнергия (руб. за кВт/ч.) | C22: =C12/C18 -> 5.892801499 | D22: 5.977394115 | E22: 5.949944734 | F22: =(C22+D22+E22)/3 -> 5.940046783
A23: 3.3 | B23: вода (руб за м. куб.) | C23: 26.34035616 | D23: 26.67076587 | E23: 26.55284634 | F23: 26.52132279
